[Event "*** Titled Tuesday Blitz AM"]
[Site "Chess.com"]
[Date "2020.01.07"]
[Round "9"]
[White "Manukyan_Artak"]
[Black "vinniethepooh"]
[Result "1-0"]
[WhiteElo "2470"]
[BlackElo "2586"]
[TimeControl "180+2"]
[EndTime "11:06:36 PST"]
[Termination "Manukyan_Artak won on time"]

1. e4 {[%clk 0:03:01.7]} 1... c5 {[%clk 0:03:00.9]} 2. Nf3 {[%clk 0:03:02.4]}
2... Nc6 {[%clk 0:03:02.1]} 3. c3 {[%clk 0:03:03.4]} 3... d5 {[%clk 0:02:57.7]}
4. exd5 {[%clk 0:03:04.5]} 4... Qxd5 {[%clk 0:02:59.6]} 5. d4 {[%clk 0:03:05.8]}
5... e6 {[%clk 0:02:59.9]} 6. Be3 {[%clk 0:03:02.9]} 6... Nf6 {[%clk 0:03:00.2]}
7. dxc5 {[%clk 0:02:59.6]} 7... Qxd1+ {[%clk 0:03:02.1]} 8. Kxd1 {[%clk
0:03:00.8]} 8... Ng4 {[%clk 0:03:03]} 9. b4 {[%clk 0:03:01.4]} 9... a5 {[%clk
0:03:03.1]} 10. Bb5 {[%clk 0:03:00.6]} 10... axb4 {[%clk 0:03:00.1]} 11. cxb4
{[%clk 0:03:01.5]} 11... Bd7 {[%clk 0:02:59]} 12. Bxc6 {[%clk 0:02:54.7]} 12...
Bxc6 {[%clk 0:02:57.8]} 13. Nc3 {[%clk 0:02:55.8]} 13... b6 {[%clk 0:02:51.7]}
14. a4 {[%clk 0:02:38.2]} 14... g6 {[%clk 0:01:46.9]} 15. Kc2 {[%clk 0:02:32.6]}
15... Nxe3+ {[%clk 0:01:15.8]} 16. fxe3 {[%clk 0:02:30]} 16... bxc5 {[%clk
0:01:03.1]} 17. b5 {[%clk 0:02:30.9]} 17... Bxf3 {[%clk 0:01:04.3]} 18. gxf3
{[%clk 0:02:31.3]} 18... Ra5 {[%clk 0:01:05.9]} 19. Rac1 {[%clk 0:02:05.5]}
19... Bg7 {[%clk 0:01:03.7]} 20. Kb3 {[%clk 0:02:05.8]} 20... Ke7 {[%clk
0:00:58.5]} 21. Ne4 {[%clk 0:02:03.4]} 21... Rd8 {[%clk 0:00:38.2]} 22. Nxc5
{[%clk 0:01:54.9]} 22... Rd2 {[%clk 0:00:36.4]} 23. Rc2 {[%clk 0:01:48.9]} 23...
Rd5 {[%clk 0:00:25.8]} 24. Kb4 {[%clk 0:01:25.4]} 24... Ra8 {[%clk 0:00:25.2]}
25. a5 {[%clk 0:01:20.2]} 25... Bf8 {[%clk 0:00:26.1]} 26. Rhc1 {[%clk
0:01:06.2]} 26... Kd6 {[%clk 0:00:23.1]} 27. a6 {[%clk 0:00:54.5]} 27... Rc8
{[%clk 0:00:17.4]} 28. Nb7+ {[%clk 0:00:48.3]} 28... Kd7+ {[%clk 0:00:18.1]} 29.
Ka4 {[%clk 0:00:48.8]} 29... Rd3 {[%clk 0:00:17.3]} 30. Nc5+ {[%clk 0:00:45.2]}
30... Bxc5 {[%clk 0:00:12.3]} 31. Rxc5 {[%clk 0:00:47.1]} 31... Ra8 {[%clk
0:00:12.9]} 32. R1c3 {[%clk 0:00:44.5]} 32... Rd2 {[%clk 0:00:10.8]} 33. Rc7+
{[%clk 0:00:41.6]} 33... Kd6 {[%clk 0:00:10.1]} 34. Rc2 {[%clk 0:00:41.7]} 34...
Rd1 {[%clk 0:00:08.7]} 35. Ka5 {[%clk 0:00:38]} 35... Rb8 {[%clk 0:00:05.5]} 36.
Rb7 {[%clk 0:00:38]} 36... Ra8 {[%clk 0:00:04.3]} 37. Kb6 {[%clk 0:00:38.5]}
37... Rb1 {[%clk 0:00:05.2]} 38. Rc6+ {[%clk 0:00:33.5]} 38... Ke5 {[%clk
0:00:05.9]} 39. Rxf7 {[%clk 0:00:32.9]} 39... Rb8+ {[%clk 0:00:05.6]} 40. Rb7
{[%clk 0:00:33.5]} 40... Rd8 {[%clk 0:00:07.5]} 41. Kc7 {[%clk 0:00:31.2]} 41...
Ra8 {[%clk 0:00:04.6]} 42. a7 {[%clk 0:00:29.9]} 42... Kd5 {[%clk 0:00:05]} 43.
b6 {[%clk 0:00:26]} 43... Rf8 {[%clk 0:00:06.3]} 44. Rd6+ {[%clk 0:00:26.1]}
44... Kc5 {[%clk 0:00:07.7]} 45. Rd7 {[%clk 0:00:24.7]} 45... Kb5 {[%clk
0:00:05.3]} 46. Rb8 {[%clk 0:00:24.7]} 46... Rc1+ {[%clk 0:00:04.6]} 47. Kb7
{[%clk 0:00:26]} 47... Rf6 {[%clk 0:00:04.3]} 48. Ka8 {[%clk 0:00:24.5]} 1-0

[Event "*** Titled Tuesday Blitz AM"]
[Site "Chess.com"]
[Date "2020.01.07"]
[Round "9"]
[White "Flawless_Fighter"]
[Black "econpower"]
[Result "1-0"]
[WhiteElo "2490"]
[BlackElo "2604"]
[TimeControl "180+2"]
[EndTime "11:06:46 PST"]
[Termination "Flawless_Fighter won by resignation"]

1. e4 {[%clk 0:03:01.9]} 1... c5 {[%clk 0:03:00.8]} 2. Nf3 {[%clk 0:03:02.8]}
2... d6 {[%clk 0:03:02.3]} 3. Bb5+ {[%clk 0:03:03.6]} 3... Nd7 {[%clk
0:03:03.5]} 4. Ba4 {[%clk 0:03:04]} 4... a6 {[%clk 0:03:04.3]} 5. c4 {[%clk
0:03:04.6]} 5... Nf6 {[%clk 0:03:04.4]} 6. Nc3 {[%clk 0:03:06.1]} 6... g6 {[%clk
0:03:05.7]} 7. O-O {[%clk 0:03:07.4]} 7... Bg7 {[%clk 0:03:06.9]} 8. d3 {[%clk
0:03:09]} 8... O-O {[%clk 0:03:08.1]} 9. h3 {[%clk 0:03:10.6]} 9... Ne5 {[%clk
0:03:08.7]} 10. Nxe5 {[%clk 0:03:11.1]} 10... dxe5 {[%clk 0:03:09.9]} 11. Be3
{[%clk 0:03:12.7]} 11... b6 {[%clk 0:03:10.7]} 12. a3 {[%clk 0:03:11.7]} 12...
e6 {[%clk 0:02:38.6]} 13. b4 {[%clk 0:03:11.3]} 13... Qc7 {[%clk 0:02:40.2]} 14.
Rb1 {[%clk 0:03:09.1]} 14... Rd8 {[%clk 0:02:41.1]} 15. Qe2 {[%clk 0:03:09.2]}
15... Bf8 {[%clk 0:02:41.7]} 16. f4 {[%clk 0:02:35.3]} 16... Nh5 {[%clk
0:02:27.8]} 17. f5 {[%clk 0:02:23.2]} 17... Ng3 {[%clk 0:02:27]} 18. Qf2 {[%clk
0:02:12.8]} 18... Nxf1 {[%clk 0:02:27.2]} 19. Qxf1 {[%clk 0:02:13.2]} 19... Qd6
{[%clk 0:01:55.1]} 20. Bc2 {[%clk 0:02:11.1]} 20... exf5 {[%clk 0:01:49.8]} 21.
Nd5 {[%clk 0:02:07.3]} 21... f4 {[%clk 0:01:47.9]} 22. bxc5 {[%clk 0:02:01.8]}
22... bxc5 {[%clk 0:01:35.6]} 23. Rb6 {[%clk 0:01:55.1]} 23... fxe3 {[%clk
0:01:35.9]} 24. Rxd6 {[%clk 0:01:48.4]} 24... Rxd6 {[%clk 0:01:37.8]} 25. Nf6+
{[%clk 0:01:23.4]} 25... Kh8 {[%clk 0:01:38.3]} 26. Ne8 {[%clk 0:01:23.6]} 26...
Kg8 {[%clk 0:01:02.6]} 27. Nxd6 {[%clk 0:01:16.6]} 27... Bxd6 {[%clk 0:01:03.6]}
28. Qf6 {[%clk 0:01:17.2]} 28... Be6 {[%clk 0:01:04.7]} 29. Qf3 {[%clk
0:01:11.8]} 29... Rb8 {[%clk 0:01:03.8]} 30. Qxe3 {[%clk 0:01:12.3]} 30... Rb2
{[%clk 0:01:04.9]} 31. Qc1 {[%clk 0:01:09.7]} 31... Rb6 {[%clk 0:01:01.7]} 32.
Ba4 {[%clk 0:01:09.3]} 32... Kg7 {[%clk 0:01:03.1]} 33. Kh2 {[%clk 0:01:03.2]}
33... h5 {[%clk 0:01:04.1]} 34. Qd2 {[%clk 0:00:57.4]} 34... Be7 {[%clk
0:00:48.7]} 35. Qa5 {[%clk 0:00:45.5]} 35... Rb2 {[%clk 0:00:49.3]} 36. Qc3
{[%clk 0:00:44.7]} 36... Ra2 {[%clk 0:00:43.2]} 37. Qxe5+ {[%clk 0:00:26.3]}
37... Bf6 {[%clk 0:00:34.5]} 38. Qxc5 {[%clk 0:00:25.5]} 38... Bb2 {[%clk
0:00:36.4]} 39. d4 {[%clk 0:00:22]} 39... Bxa3 {[%clk 0:00:35.4]} 40. Qe5+
{[%clk 0:00:22.6]} 40... Kh7 {[%clk 0:00:34.7]} 41. Be8 {[%clk 0:00:18.5]} 41...
Bb2 {[%clk 0:00:32.9]} 42. Qf6 {[%clk 0:00:16.9]} 42... Kg8 {[%clk 0:00:33.7]}
43. c5 {[%clk 0:00:14.2]} 43... Bc3 {[%clk 0:00:20.3]} 44. c6 {[%clk 0:00:10.5]}
44... Ba5 {[%clk 0:00:17]} 45. e5 {[%clk 0:00:04.4]} 45... Rd2 {[%clk
0:00:14.8]} 46. Qf4 {[%clk 0:00:03.1]} 46... Rc2 {[%clk 0:00:15.5]} 47. Qf6
{[%clk 0:00:03.7]} 47... Rd2 {[%clk 0:00:16.5]} 48. Qf4 {[%clk 0:00:04.7]} 48...
Rc2 {[%clk 0:00:17.8]} 49. Qe4 {[%clk 0:00:05.9]} 49... Rc4 {[%clk 0:00:16.8]}
50. Bd7 {[%clk 0:00:05.4]} 50... Kg7 {[%clk 0:00:12.4]} 51. Bxe6 {[%clk
0:00:05.7]} 51... fxe6 {[%clk 0:00:14.3]} 52. Qd3 {[%clk 0:00:04.9]} 52... Rxc6
{[%clk 0:00:15.7]} 53. Qa3 {[%clk 0:00:05.9]} 53... Bd8 {[%clk 0:00:15.8]} 54.
Qa4 {[%clk 0:00:05.9]} 54... Rb6 {[%clk 0:00:14.8]} 55. Qd7+ {[%clk 0:00:06.7]}
55... Kh6 {[%clk 0:00:16.7]} 56. Qxd8 {[%clk 0:00:07.8]} 56... Rb4 {[%clk
0:00:18.6]} 57. Qh8+ {[%clk 0:00:08.2]} 57... Kg5 {[%clk 0:00:19.7]} 58. Qf6+
{[%clk 0:00:09.6]} 58... Kh6 {[%clk 0:00:21.6]} 59. Qxe6 {[%clk 0:00:10.2]}
59... Rxd4 {[%clk 0:00:23.5]} 60. Qf6 {[%clk 0:00:10.9]} 1-0

[Event "*** Titled Tuesday Blitz AM"]
[Site "Chess.com"]
[Date "2020.01.07"]
[Round "9"]
[White "MiroVlasenko"]
[Black "heyiampotato"]
[Result "1-0"]
[WhiteElo "2691"]
[BlackElo "2512"]
[TimeControl "180+2"]
[EndTime "11:06:48 PST"]
[Termination "MiroVlasenko won by checkmate"]

1. d4 {[%clk 0:03:01.9]} 1... Nf6 {[%clk 0:03:00.6]} 2. Bg5 {[%clk 0:03:02]}
2... e6 {[%clk 0:02:57.1]} 3. e4 {[%clk 0:03:02.4]} 3... h6 {[%clk 0:02:57.9]}
4. Bxf6 {[%clk 0:03:03.6]} 4... Qxf6 {[%clk 0:02:58.7]} 5. Nc3 {[%clk
0:03:05.5]} 5... d6 {[%clk 0:02:59.6]} 6. Qd2 {[%clk 0:03:06.3]} 6... c6 {[%clk
0:02:59.5]} 7. f4 {[%clk 0:03:07]} 7... e5 {[%clk 0:02:55.5]} 8. dxe5 {[%clk
0:03:07]} 8... dxe5 {[%clk 0:02:56.7]} 9. f5 {[%clk 0:03:08.5]} 9... Nd7 {[%clk
0:02:45.7]} 10. Nf3 {[%clk 0:03:07.3]} 10... Bb4 {[%clk 0:02:45]} 11. a3 {[%clk
0:03:05.2]} 11... Ba5 {[%clk 0:02:45.1]} 12. g4 {[%clk 0:03:04.2]} 12... Qe7
{[%clk 0:02:37.1]} 13. h4 {[%clk 0:02:54]} 13... Nf6 {[%clk 0:02:36]} 14. b4
{[%clk 0:02:52.3]} 14... Bb6 {[%clk 0:02:31.7]} 15. g5 {[%clk 0:02:53.3]} 15...
hxg5 {[%clk 0:02:28.6]} 16. Nxg5 {[%clk 0:02:55.2]} 16... a5 {[%clk 0:02:08.6]}
17. Na4 {[%clk 0:02:38.4]} 17... Bc7 {[%clk 0:01:55.5]} 18. b5 {[%clk
0:02:36.8]} 18... Bd7 {[%clk 0:01:46.7]} 19. Bc4 {[%clk 0:02:31.4]} 19... Rf8
{[%clk 0:01:41.6]} 20. b6 {[%clk 0:02:29.9]} 20... Bd6 {[%clk 0:01:41.3]} 21.
Rh3 {[%clk 0:02:17.7]} 21... Nh5 {[%clk 0:01:21.8]} 22. Rd3 {[%clk 0:02:13.3]}
22... Bb8 {[%clk 0:01:04.4]} 23. Rxd7 {[%clk 0:01:46.9]} 23... Qxd7 {[%clk
0:01:02.1]} 24. Qxd7+ {[%clk 0:01:46.8]} 24... Kxd7 {[%clk 0:01:03.2]} 25. Bxf7
{[%clk 0:01:47.8]} 25... Nf4 {[%clk 0:00:51.4]} 26. Nc5+ {[%clk 0:01:37.1]}
26... Ke7 {[%clk 0:00:52.5]} 27. Bc4 {[%clk 0:01:37.4]} 27... Bd6 {[%clk
0:00:50.8]} 28. Nxb7 {[%clk 0:01:38.2]} 28... Rfb8 {[%clk 0:00:48.9]} 29. Nxd6
{[%clk 0:01:31.5]} 29... Kxd6 {[%clk 0:00:50.8]} 30. Rb1 {[%clk 0:01:31.2]}
30... Kc5 {[%clk 0:00:45]} 31. Bb3 {[%clk 0:01:23.7]} 31... Rxb6 {[%clk
0:00:44.4]} 32. a4 {[%clk 0:01:25.1]} 32... Rb4 {[%clk 0:00:44.3]} 33. Rd1
{[%clk 0:01:24.8]} 33... Rh8 {[%clk 0:00:38.7]} 34. Rd7 {[%clk 0:01:21]} 34...
Rxh4 {[%clk 0:00:37.2]} 35. Rxg7 {[%clk 0:01:20.6]} 35... Rh1+ {[%clk
0:00:36.3]} 36. Kf2 {[%clk 0:01:16.7]} 36... Rh2+ {[%clk 0:00:36.2]} 37. Kf3
{[%clk 0:01:15.9]} 37... Rd4 {[%clk 0:00:25.5]} 38. f6 {[%clk 0:01:14.2]} 38...
Rdd2 {[%clk 0:00:15.5]} 39. Kg4 {[%clk 0:01:13.6]} 39... Rhg2+ {[%clk
0:00:09.9]} 40. Kf5 {[%clk 0:01:13.4]} 40... Nh5 {[%clk 0:00:10.4]} 41. Rg6
{[%clk 0:01:08]} 41... Rdf2+ {[%clk 0:00:07.1]} 42. Kxe5 {[%clk 0:01:08.9]}
42... Rg3 {[%clk 0:00:04.7]} 43. f7 {[%clk 0:01:04.9]} 43... Rgg2 {[%clk
0:00:05.1]} 44. Ne6+ {[%clk 0:01:05.2]} 44... Kb4 {[%clk 0:00:05.9]} 45. Rxg2
{[%clk 0:01:05.2]} 45... Rxf7 {[%clk 0:00:07]} 46. Nd4 {[%clk 0:01:04.6]} 46...
Re7+ {[%clk 0:00:06.6]} 47. Kf5 {[%clk 0:01:02.8]} 47... Kc3 {[%clk 0:00:05.8]}
48. Nxc6 {[%clk 0:01:02.9]} 48... Rc7 {[%clk 0:00:06.6]} 49. Ne5 {[%clk
0:01:00.6]} 49... Ng7+ {[%clk 0:00:07.1]} 50. Kf6 {[%clk 0:01:01.2]} 50... Ne8+
{[%clk 0:00:07.9]} 51. Ke6 {[%clk 0:01:01.6]} 51... Ng7+ {[%clk 0:00:08.8]} 52.
Kd5 {[%clk 0:00:59.6]} 52... Kb4 {[%clk 0:00:08.8]} 53. Rg3 {[%clk 0:00:58.9]}
53... Nh5 {[%clk 0:00:09]} 54. Rf3 {[%clk 0:00:57.6]} 54... Ng7 {[%clk
0:00:07.3]} 55. Nc6+ {[%clk 0:00:57.8]} 55... Ka3 {[%clk 0:00:05]} 56. e5 {[%clk
0:00:59]} 56... Nh5 {[%clk 0:00:05]} 57. Nxa5 {[%clk 0:00:59.1]} 57... Kb4
{[%clk 0:00:05.3]} 58. Nc6+ {[%clk 0:00:59.8]} 58... Ka3 {[%clk 0:00:07.2]} 59.
a5 {[%clk 0:01:00.9]} 59... Nf4+ {[%clk 0:00:06.9]} 60. Rxf4 {[%clk 0:01:00.5]}
60... Rd7+ {[%clk 0:00:08.5]} 61. Kc5 {[%clk 0:01:00.6]} 61... Kb2 {[%clk
0:00:08.6]} 62. a6 {[%clk 0:01:01.3]} 62... Kc3 {[%clk 0:00:10]} 63. e6 {[%clk
0:01:02.3]} 63... Rc7 {[%clk 0:00:09.9]} 64. e7 {[%clk 0:01:03.2]} 64... Kd2
{[%clk 0:00:10.4]} 65. e8=Q {[%clk 0:01:02.9]} 65... Rxc6+ {[%clk 0:00:11.8]}
66. Kxc6 {[%clk 0:01:03.8]} 66... Kc1 {[%clk 0:00:13.7]} 67. Qe5 {[%clk
0:01:02.7]} 67... Kd2 {[%clk 0:00:14.5]} 68. Qd4+ {[%clk 0:01:03.1]} 68... Kc1
{[%clk 0:00:16.4]} 69. Rf1# {[%clk 0:01:03.7]} 1-0

[Event "*** Titled Tuesday Blitz AM"]
[Site "Chess.com"]
[Date "2020.01.07"]
[Round "9"]
[White "Vugar_Manafov"]
[Black "mazetofonias"]
[Result "1-0"]
[WhiteElo "2587"]
[BlackElo "2685"]
[TimeControl "180+2"]
[EndTime "11:06:52 PST"]
[Termination "Vugar_Manafov won by resignation"]

1. Nf3 {[%clk 0:03:01.8]} 1... Nf6 {[%clk 0:03:00.6]} 2. g3 {[%clk 0:03:03]}
2... d5 {[%clk 0:03:01.8]} 3. Bg2 {[%clk 0:03:03.9]} 3... c6 {[%clk 0:03:03.3]}
4. O-O {[%clk 0:03:03.3]} 4... Bg4 {[%clk 0:03:04.4]} 5. d3 {[%clk 0:03:02.4]}
5... Nbd7 {[%clk 0:03:05.4]} 6. Nbd2 {[%clk 0:03:03.6]} 6... e5 {[%clk
0:03:06.8]} 7. e4 {[%clk 0:03:04.8]} 7... dxe4 {[%clk 0:03:08.7]} 8. dxe4 {[%clk
0:03:05.2]} 8... Be7 {[%clk 0:03:10.2]} 9. h3 {[%clk 0:03:06.6]} 9... Bh5 {[%clk
0:03:10.4]} 10. Qe1 {[%clk 0:03:07.6]} 10... O-O {[%clk 0:03:10.9]} 11. Nh4
{[%clk 0:03:08.6]} 11... Re8 {[%clk 0:03:11.4]} 12. Nf5 {[%clk 0:03:08.1]} 12...
Bf8 {[%clk 0:03:12.7]} 13. Nc4 {[%clk 0:03:05.7]} 13... Qc7 {[%clk 0:03:08.3]}
14. Bg5 {[%clk 0:02:57.8]} 14... h6 {[%clk 0:03:06.7]} 15. Bd2 {[%clk
0:02:49.8]} 15... Nc5 {[%clk 0:03:06.5]} 16. b4 {[%clk 0:02:45.3]} 16... Ne6
{[%clk 0:03:06.5]} 17. c3 {[%clk 0:02:45.7]} 17... Rad8 {[%clk 0:03:05.2]} 18.
a4 {[%clk 0:02:44.7]} 18... b6 {[%clk 0:03:04.8]} 19. Be3 {[%clk 0:02:43.7]}
19... Bg6 {[%clk 0:03:01.9]} 20. Rd1 {[%clk 0:02:41.4]} 20... Bxf5 {[%clk
0:02:22.3]} 21. exf5 {[%clk 0:02:41.1]} 21... Nd4 {[%clk 0:02:23.4]} 22. cxd4
{[%clk 0:02:38.1]} 22... exd4 {[%clk 0:02:18]} 23. Bf4 {[%clk 0:02:37.9]} 23...
Qd7 {[%clk 0:02:13.1]} 24. Qd2 {[%clk 0:02:37.1]} 24... Qxf5 {[%clk 0:02:13.4]}
25. Rfe1 {[%clk 0:02:31.9]} 25... Rxe1+ {[%clk 0:02:11.5]} 26. Rxe1 {[%clk
0:02:33.8]} 26... c5 {[%clk 0:02:13]} 27. bxc5 {[%clk 0:02:31.3]} 27... Bxc5
{[%clk 0:02:14.9]} 28. g4 {[%clk 0:02:29.5]} 28... Qd7 {[%clk 0:02:15.3]} 29.
Ne5 {[%clk 0:02:23.7]} 29... Qxa4 {[%clk 0:02:13.8]} 30. Nd3 {[%clk 0:02:14.5]}
30... Bf8 {[%clk 0:02:08.8]} 31. g5 {[%clk 0:02:09.1]} 31... hxg5 {[%clk
0:02:07.9]} 32. Bxg5 {[%clk 0:02:11]} 32... Rd6 {[%clk 0:02:09.3]} 33. Bf4
{[%clk 0:02:01.2]} 33... Rd8 {[%clk 0:02:06.1]} 34. Be5 {[%clk 0:01:59.1]} 34...
Be7 {[%clk 0:02:01.6]} 35. Rc1 {[%clk 0:01:47.8]} 35... Nd7 {[%clk 0:01:13]} 36.
Bc7 {[%clk 0:01:41.7]} 36... Rf8 {[%clk 0:00:30.9]} 37. Bc6 {[%clk 0:01:41.4]}
37... Qb3 {[%clk 0:00:29.5]} 38. Bxd7 {[%clk 0:01:40.7]} 38... Qd5 {[%clk
0:00:30]} 39. Bc6 {[%clk 0:01:36.4]} 39... Qf5 {[%clk 0:00:27.4]} 40. Bg3 {[%clk
0:01:34.7]} 40... Qxh3 {[%clk 0:00:27.5]} 41. Bg2 {[%clk 0:01:33.9]} 41... Qd7
{[%clk 0:00:27.9]} 42. Rc7 {[%clk 0:01:34.1]} 42... Qe6 {[%clk 0:00:28.1]} 43.
Rxa7 {[%clk 0:01:32.6]} 43... Bf6 {[%clk 0:00:28.2]} 44. Ra1 {[%clk 0:01:29.4]}
44... Rc8 {[%clk 0:00:29.4]} 45. Re1 {[%clk 0:01:28.9]} 45... Qf5 {[%clk
0:00:30.7]} 46. Bb7 {[%clk 0:01:24.6]} 46... Rd8 {[%clk 0:00:28.7]} 47. Be4
{[%clk 0:01:20.7]} 47... Qh5 {[%clk 0:00:27.6]} 48. Qe2 {[%clk 0:01:20.3]} 48...
Qg5 {[%clk 0:00:27.8]} 49. Rc1 {[%clk 0:01:12.7]} 49... b5 {[%clk 0:00:28.5]}
50. Rc7 {[%clk 0:01:10.5]} 50... b4 {[%clk 0:00:28.4]} 51. Nxb4 {[%clk
0:01:06.6]} 51... Rf8 {[%clk 0:00:05.2]} 52. Nd3 {[%clk 0:01:06.4]} 52... Qa5
{[%clk 0:00:06]} 53. Qf3 {[%clk 0:01:05.9]} 53... Re8 {[%clk 0:00:06.3]} 54. Bd5
{[%clk 0:01:04.1]} 54... Rf8 {[%clk 0:00:07.8]} 55. Qf5 {[%clk 0:01:01.6]} 55...
Qb6 {[%clk 0:00:07.6]} 56. Kg2 {[%clk 0:00:58.6]} 56... g6 {[%clk 0:00:08.5]}
57. Qxg6+ {[%clk 0:00:56.9]} 1-0

[Event "*** Titled Tuesday Blitz AM"]
[Site "Chess.com"]
[Date "2020.01.07"]
[Round "9"]
[White "korbul"]
[Black "enriquetejedor"]
[Result "1-0"]
[WhiteElo "2634"]
[BlackElo "2467"]
[TimeControl "180+2"]
[EndTime "11:07:15 PST"]
[Termination "korbul won by resignation"]

1. d4 {[%clk 0:03:00.2]} 1... Nf6 {[%clk 0:03:00.1]} 2. Nf3 {[%clk 0:03:00.8]}
2... e6 {[%clk 0:02:45.7]} 3. c4 {[%clk 0:02:59.1]} 3... b6 {[%clk 0:02:40.9]}
4. g3 {[%clk 0:02:58.4]} 4... Bb4+ {[%clk 0:02:30]} 5. Nbd2 {[%clk 0:02:58.3]}
5... Bb7 {[%clk 0:02:28.7]} 6. Bg2 {[%clk 0:02:54.1]} 6... O-O {[%clk
0:02:25.3]} 7. O-O {[%clk 0:02:55]} 7... c5 {[%clk 0:01:59]} 8. a3 {[%clk
0:02:48.6]} 8... Bxd2 {[%clk 0:01:57.6]} 9. Qxd2 {[%clk 0:02:49.8]} 9... Nc6
{[%clk 0:01:49.7]} 10. dxc5 {[%clk 0:02:50.4]} 10... bxc5 {[%clk 0:01:38.5]} 11.
b3 {[%clk 0:02:50.4]} 11... Na5 {[%clk 0:01:25.1]} 12. Qe3 {[%clk 0:02:34.8]}
12... d5 {[%clk 0:01:13.4]} 13. cxd5 {[%clk 0:02:18.5]} 13... Nxd5 {[%clk
0:01:12.8]} 14. Qd3 {[%clk 0:02:13.7]} 14... Qb6 {[%clk 0:01:11.3]} 15. Bd2
{[%clk 0:02:08.7]} 15... Ba6 {[%clk 0:00:59.3]} 16. Bxa5 {[%clk 0:01:58.9]}
16... Qxa5 {[%clk 0:01:01.2]} 17. Qc2 {[%clk 0:01:59.5]} 17... Rfc8 {[%clk
0:00:51.6]} 18. Ng5 {[%clk 0:01:57.1]} 18... g6 {[%clk 0:00:42.3]} 19. Rfc1
{[%clk 0:01:57]} 19... Rab8 {[%clk 0:00:41.1]} 20. Ne4 {[%clk 0:01:46.5]} 20...
c4 {[%clk 0:00:16.3]} 21. b4 {[%clk 0:01:47.6]} 21... Qb6 {[%clk 0:00:15.5]} 22.
Nc5 {[%clk 0:01:48.5]} 22... Rxc5 {[%clk 0:00:13.8]} 23. bxc5 {[%clk 0:01:49]}
23... Qxc5 {[%clk 0:00:15.7]} 24. Rab1 {[%clk 0:01:47.5]} 24... Rxb1 {[%clk
0:00:14.7]} 25. Rxb1 {[%clk 0:01:39.1]} 25... Qxa3 {[%clk 0:00:15.6]} 26. h4
{[%clk 0:01:32.3]} 26... c3 {[%clk 0:00:11.9]} 27. Rb8+ {[%clk 0:01:28.3]} 27...
Kg7 {[%clk 0:00:12.5]} 28. Qe4 {[%clk 0:01:28.2]} 28... Nf6 {[%clk 0:00:06.5]}
29. Qc2 {[%clk 0:01:17.7]} 29... Bc4 {[%clk 0:00:03.7]} 30. Rc8 {[%clk 0:01:12]}
30... Qb2 {[%clk 0:00:04.5]} 31. Qxb2 {[%clk 0:01:08.4]} 31... cxb2 {[%clk
0:00:06.4]} 32. Rb8 {[%clk 0:01:09.7]} 32... Bxe2 {[%clk 0:00:06.8]} 33. Rxb2
{[%clk 0:01:10.4]} 33... Bc4 {[%clk 0:00:07]} 34. Rc2 {[%clk 0:01:09.3]} 34...
Bd3 {[%clk 0:00:07.4]} 35. Ra2 {[%clk 0:01:07.4]} 35... a6 {[%clk 0:00:08.4]}
36. Bf1 {[%clk 0:01:08.5]} 36... Bxf1 {[%clk 0:00:09.5]} 37. Kxf1 {[%clk
0:01:09.7]} 37... h5 {[%clk 0:00:10.7]} 38. Rxa6 {[%clk 0:01:10.5]} 38... Ng4
{[%clk 0:00:11.9]} 39. f3 {[%clk 0:01:11]} 39... Ne3+ {[%clk 0:00:12]} 40. Ke2
{[%clk 0:01:11.8]} 40... Nf5 {[%clk 0:00:13.9]} 41. Kf2 {[%clk 0:01:12.5]} 41...
Kg8 {[%clk 0:00:15.4]} 42. Kg2 {[%clk 0:01:13.8]} 42... Kg7 {[%clk 0:00:16.6]}
43. Kh3 {[%clk 0:01:15]} 43... Kf6 {[%clk 0:00:17.8]} 44. g4 {[%clk 0:01:15.9]}
44... Ng7 {[%clk 0:00:19]} 45. Ra7 {[%clk 0:01:14.6]} 45... e5 {[%clk
0:00:16.8]} 46. Kg3 {[%clk 0:01:09.7]} 46... e4 {[%clk 0:00:03.3]} 47. fxe4
{[%clk 0:01:08.4]} 47... hxg4 {[%clk 0:00:03.7]} 48. Kxg4 {[%clk 0:01:09.4]}
48... Ne6 {[%clk 0:00:05.1]} 49. Ra5 {[%clk 0:01:08.3]} 49... Kg7 {[%clk
0:00:04.4]} 50. e5 {[%clk 0:01:09]} 50... Nd4 {[%clk 0:00:04.8]} 51. Kf4 {[%clk
0:01:08]} 51... Ne6+ {[%clk 0:00:05.7]} 52. Ke4 {[%clk 0:01:08.8]} 52... g5
{[%clk 0:00:06.4]} 53. hxg5 {[%clk 0:01:08.6]} 53... Nxg5+ {[%clk 0:00:08.3]}
54. Kf5 {[%clk 0:01:10]} 54... Ne6 {[%clk 0:00:09.6]} 55. Rd5 {[%clk 0:01:08.3]}
55... Nf8 {[%clk 0:00:09.3]} 56. Rd6 {[%clk 0:01:08.1]} 56... Ng6 {[%clk
0:00:07]} 57. Rd7 {[%clk 0:01:04.3]} 57... Nf8 {[%clk 0:00:07.4]} 58. Ra7 {[%clk
0:01:04.9]} 58... Ne6 {[%clk 0:00:08.5]} 59. Ke4 {[%clk 0:01:01.6]} 59... Kg6
{[%clk 0:00:08]} 60. Kd5 {[%clk 0:01:01.8]} 60... Ng5 {[%clk 0:00:08.7]} 61.
Ra6+ {[%clk 0:01:00.1]} 61... Kg7 {[%clk 0:00:10.1]} 62. Rf6 {[%clk 0:00:58.3]}
62... Nh7 {[%clk 0:00:10.2]} 63. Rf1 {[%clk 0:00:58]} 63... Ng5 {[%clk
0:00:11.2]} 64. Kd6 {[%clk 0:00:57.2]} 64... Kh6 {[%clk 0:00:04.6]} 65. Ke7
{[%clk 0:00:55.7]} 65... Kg6 {[%clk 0:00:05.8]} 66. Rg1 {[%clk 0:00:51.9]} 66...
Kf5 {[%clk 0:00:04.7]} 67. Rxg5+ {[%clk 0:00:52.6]} 67... Kxg5 {[%clk
0:00:05.6]} 68. Kxf7 {[%clk 0:00:53.8]} 68... Kf5 {[%clk 0:00:05.7]} 69. e6
{[%clk 0:00:55]} 1-0